[Event "SUI-ch Bundesturnier TP-1 2022"]
[Site "Payerne"]
[Date "2022.05.27"]
[Round "4.9"]
[White "Willems, Niels"]
[Black "Schmid, Christoph"]
[Result "1-0"]
[ECO "A14"]
[WhiteElo "2338"]
[BlackElo "2045"]
[Annotator "TA"]
[PlyCount "155"]
[EventDate "2022.05.26"]
[EventType "swiss"]
[EventCountry "SUI"]
[SourceTitle "playchess.com"]
[Source "ChessBase"]
[SourceQuality "1"]
[TimeControl "5400+30"]

{[%evp 20,155,6,6,5,-21,-2,-15,-22,-37,-31,-23,16,0,0,0,160,160,160,160,160,160,160,160,160,134,134,134,134,134,134,134,134,134,134,134,134,134,134,134,134,134,134,134,181,134,181,0,181,181,181,134,138,138,181,181,181,181,181,181,181,181,181,160,181,160,181,181,181,181,181,181,181,181,181,181,181,181,181,181,181,0,181,111,111,111,111,111,111,79,79,79,79,79,79,79,79,79,104,111,111,111,111,0,0,0,94,0,0,0,0,0,120,8,8,0,0,0,29973,29974,29973,29973,29973,29975,29976,29977,29978,29979,29984,29985,29990,29991,29991,29992,29992,29993,29993,29994]} 1. c4 {[%emt 0:00:14]} c5 {[%emt 0:00:43]} 2. Nc3 {[%emt 0:00:14]} Nf6 {[%emt 0:00:18]} 3. g3 {[%emt 0:00:15]} e6 {[%emt 0:00:39]} 4. Nf3 {[%emt 0:01:08]} b6 {[%emt 0:00:33]} 5. Bg2 {[%emt 0:00:31]} Bb7 {[%emt 0:00:33]} 6. O-O {[%emt 0:00:27]} Be7 {[%emt 0:00:00]} 7. b3 {[%emt 0:03:35]} O-O {[%emt 0:05:29]} 8. Bb2 {[%emt 0:01:01]} d5 {[%emt 0:01:52]} 9. Ne5 {[%emt 0:14:15]} Nc6 {[%emt 0:15:31]} 10. Nxc6 {[%emt 0:07:52]} Bxc6 {[%emt 0:00:03]} 11. d4 {[%emt 0:00:25]} Rc8 {[%emt 0:08:32] A14: English Opening: 1...e6 with b3 by White.} 12. dxc5 {[%emt 0:11:19]} dxc4 {[%emt 0:07:01]} 13. Bxc6 {[%emt 0:05:09]} Rxc6 {[%emt 0:03:39] [#] The position is equal.} 14. b4 $146 {[%emt 0:06:16]} ({Predecessor:} 14. cxb6 axb6 15. bxc4 {½-½ (15) Saric,A (2538)-Kozak,A (2240) Tallinn 2019}) 14... Qxd1 {[%emt 0:22:04]} 15. Rfxd1 {[%emt 0:00:27]} a5 {[%emt 0:00:17]} 16. a3 {[%emt 0:01:35]} axb4 {[%emt 0:00:21]} 17. axb4 {[%emt 0:00:03] And now Ra7 would win.} Nd5 $2 {[%emt 0:08:19]} ({Black should try} 17... bxc5 $11 18. b5 Rc7) 18. Nxd5 $16 {[%emt 0:02:37]} exd5 {[%emt 0:00:17]} 19. Ra7 {[%emt 0:16:02]} (19. Rxd5 bxc5 20. b5 Rb6 $16) 19... Bf6 {[%emt 0:03:12]} 20. Bxf6 {[%emt 0:00:52]} gxf6 {[%emt 0:00:22]} 21. Rxd5 {[%emt 0:01:24][%mdl 4096] Endgame KRR-KRR} Rfc8 {[%emt 0:03:50]} 22. Ra6 {[%emt 0:08:53] White is much more active.} bxc5 {[%emt 0:04:02]} 23. Rxc6 {[%emt 0:00:15]} Rxc6 {[%emt 0:00:02] KR-KR} 24. b5 {[%emt 0:00:53]} ({Wrong is} 24. Rxc5 $2 Rxc5 25. bxc5 c3 $19) ({Much less strong is} 24. bxc5 c3 25. Rd1 Rxc5 $16) 24... Rb6 {[%emt 0:03:19]} 25. Rxc5 {[%emt 0:00:09]} c3 {[%emt 0:00:03]} 26. Kg2 {[%emt 0:02:25]} c2 {[%emt 0:00:06]} 27. Rxc2 {[%emt 0:00:06]} Rxb5 {[%emt 0:00:02]} 28. Rc4 {[%emt 0:00:16]} h6 {[%emt 0:02:11]} 29. Kh3 {[%emt 0:01:15]} Kg7 {[%emt 0:01:03]} 30. Rg4+ {[%emt 0:01:27]} Kh7 {[%emt 0:00:15]} 31. e4 {[%emt 0:01:06]} Rb2 {[%emt 0:01:27]} (31... Ra5 $16 32. Rf4 Kg6) 32. Kg2 {[%emt 0:01:24]} ({White should play} 32. Rf4 $18) 32... Rb3 {[%emt 0:00:36]} (32... h5 $16 33. Rf4 Kg7) 33. Kh3 {[%emt 0:05:34]} Rb2 {[%emt 0:00:42]} 34. Rf4 {[%emt 0:00:07]} Kg6 {[%emt 0:00:52]} 35. Kg4 {[%emt 0:00:06]} (35. g4 $18) 35... Ra2 {[%emt 0:04:00]} 36. Rf5 {[%emt 0:00:23]} Ra4 {[%emt 0:00:38]} 37. f3 {[%emt 0:00:21]} Ra2 {[%emt 0:01:49]} 38. h3 {[%emt 0:00:17]} Re2 {[%emt 0:00:24]} 39. Rd5 {[%emt 0:00:03]} Re1 {[%emt 0:00:24]} 40. h4 {[%emt 0:00:03]} Ra1 {[%emt 0:02:11]} 41. Rd6 {[%emt 0:00:17] Strongly threatening e5.} Ra5 {[%emt 0:00:33]} 42. Kf4 {[%emt 0:03:02]} Rb5 {[%emt 0:00:26]} 43. g4 {[%emt 0:01:01]} Ra5 {[%emt 0:00:42]} 44. Rd5 {[%emt 0:00:46]} Ra3 {[%emt 0:00:08]} 45. h5+ {[%emt 0:01:33]} Kg7 {[%emt 0:00:07]} 46. Rd1 {[%emt 0:00:07]} Rb3 {[%emt 0:00:43]} 47. Re1 {[%emt 0:00:07]} Rb4 {[%emt 0:00:22]} 48. Re3 {[%emt 0:00:25]} Ra4 {[%emt 0:00:12]} 49. Rd3 {[%emt 0:01:04]} Ra5 {[%emt 0:00:54]} 50. Re3 {[%emt 0:01:19]} Ra4 $1 {[%emt 0:00:04]} 51. Kf5 {[%emt 0:00:34]} (51. Rb3 $18) 51... Ra5+ {[%emt 0:00:15] [#]} 52. e5 $1 {[%emt 0:00:12]} fxe5 {[%emt 0:00:37]} 53. Rxe5 {[%emt 0:00:06]} Ra3 {[%emt 0:00:57]} 54. f4 {[%emt 0:00:01]} Ra1 {[%emt 0:00:14]} 55. Rb5 {[%emt 0:00:11]} Ra2 {[%emt 0:00:39]} 56. Rd5 {[%emt 0:00:26]} Rb2 {[%emt 0:00:06]} 57. Ke4 {[%emt 0:01:57]} Rb4+ {[%emt 0:00:30]} 58. Rd4 {[%emt 0:00:11]} Rb1 {[%emt 0:00:08]} 59. Rd3 {[%emt 0:00:04]} Rb4+ {[%emt 0:00:16]} 60. Kf3 {[%emt 0:00:10]} Rb1 {[%emt 0:00:22][%cal Of7f5]} 61. g5 {[%emt 0:00:49]} (61. Rd6 $16) 61... Rb5 {[%emt 0:01:51]} 62. Kg4 {[%emt 0:01:22][%cal Og5g6]} Rb4 {[%emt 0:01:21] [#]} (62... hxg5 $11 63. fxg5 Rb4+ 64. Kh3 Rb5) 63. Rd7 {[%emt 0:00:51]} ({Better is} 63. g6 $1 $16 {Black must now prevent Rd7.} Rb7 64. f5) 63... hxg5 $1 $11 {[%emt 0:01:25]} 64. Kxg5 {[%emt 0:00:01]} Rb5+ {[%emt 0:00:24]} 65. f5 {[%emt 0:00:02][%cal Bf4f5,Bf5f6,Bf6f7][%mdl 32]} Rb1 {[%emt 0:00:29]} (65... Rb6 $11 {keeps the balance.}) 66. h6+ {[%emt 0:00:43]} (66. f6+ $16 Kg8 67. Kh6) 66... Kg8 {[%emt 0:00:09]} 67. Kf6 {[%emt 0:03:20]} Rb6+ {[%emt 0:00:10]} 68. Ke7 {[%emt 0:00:16]} ({Resist} 68. Kg5 $6 Ra6 69. Re7 Rb6 $16) 68... Rxh6 $2 {[%emt 0:00:29][%mdl 8192]} (68... Kh7 $11) 69. f6 {[%emt 0:00:01] White mates.} Rh1 {[%emt 0:00:24]} 70. Rd8+ {[%emt 0:00:01]} Kh7 {[%emt 0:00:03]} 71. Kxf7 {[%emt 0:00:06]} Ra1 {[%emt 0:00:09]} 72. Kf8 {[%emt 0:00:39]} Ra7 {[%emt 0:02:49]} 73. f7 {[%emt 0:00:13]} Kg6 {[%emt 0:00:33]} 74. Rd6+ {[%emt 0:00:17]} Kh7 {[%emt 0:00:01]} 75. Ke8 {[%emt 0:00:08]} Ra8+ {[%emt 0:00:40]} 76. Rd8 {[%emt 0:00:07]} Rxd8+ {[%emt 0:00:10]} 77. Kxd8 {[%emt 0:00:02]} Kg7 {[%emt 0:00:04]} 78. Ke7 {[%emt 0:00:06] Weighted Error Value: White=0.14 (very precise) /Black=0.11 (very precise)} 1-0

[Event "SUI-ch Bundesturnier TP-1 2022"]
[Site "Payerne"]
[Date "2022.05.27"]
[Round "4.10"]
[White "Schlegel, Igor"]
[Black "Jaggy, Matteo"]
[Result "1-0"]
[ECO "B40"]
[WhiteElo "2183"]
[BlackElo "1999"]
[Annotator "TA"]
[PlyCount "85"]
[EventDate "2022.05.26"]
[EventType "swiss"]
[EventCountry "SUI"]
[SourceTitle "playchess.com"]
[Source "ChessBase"]
[SourceQuality "1"]
[TimeControl "5400+30"]

{[%evp 9,85,8,50,42,45,52,43,37,45,42,42,44,39,35,50,36,43,45,43,44,53,47,43,31,41,25,29,22,47,38,43,35,41,0,16,10,12,22,19,20,22,-39,35,31,44,44,39,16,18,18,64,50,52,51,49,56,81,75,530,67,69,73,174,121,178,178,178,164,203,191,206,208,640,248,1564,730,29983,29984]} 1. e4 {[%emt 0:00:01]} c5 {[%emt 0:00:07]} 2. Nf3 {[%emt 0:00:03]} e6 {[%emt 0:00:11][%cal Be7e6,Be6e5][%mdl 32]} 3. g3 {[%emt 0:00:03]} Nc6 {[%emt 0:00:12]} 4. Bg2 {[%emt 0:00:03]} Be7 {[%emt 0:00:52]} 5. O-O {[%emt 0:00:09]} e5 {[%emt 0:04:17]} 6. c3 {[%emt 0:08:11] B40: Sicilian: 2...e6, Unusual lines.} d6 {[%emt 0:11:03]} 7. d4 {[%emt 0:03:19]} cxd4 {[%emt 0:03:56]} 8. cxd4 {[%emt 0:00:05] White is slightly better.} Bg4 {[%emt 0:00:59] [#]} 9. Be3 $146 {[%emt 0:05:02]} ({Predecessor:} 9. d5 Nb8 10. Nc3 Nf6 11. h3 Bxf3 12. Bxf3 O-O 13. Be3 Nbd7 14. Rc1 b6 15. b4 {1-0 (46) Fewkes,J-Brooks,I (1586) ICCF email 2017}) 9... exd4 {[%emt 0:11:31]} 10. Bxd4 {[%emt 0:00:09]} Nf6 {[%emt 0:07:42]} 11. Nc3 {[%emt 0:07:34]} O-O {[%emt 0:02:09][%cal Bh8f8,Bf8c8,Bc8c7][%mdl 32]} 12. h3 {[%emt 0:01:49] [#] Black must now prevent Bxf6.} Bxf3 {[%emt 0:07:07]} 13. Bxf3 {[%emt 0:00:07]} Nxd4 {[%emt 0:01:49]} 14. Qxd4 {[%emt 0:00:06]} Qa5 {[%emt 0:01:10]} 15. Rac1 {[%emt 0:12:24]} Rfc8 {[%emt 0:06:15]} 16. h4 {[%emt 0:06:05]} h6 {[%emt 0:04:02]} 17. Bg2 {[%emt 0:07:13]} Qe5 {[%emt 0:06:55]} 18. Qd3 {[%emt 0:06:18]} Rc7 {[%emt 0:10:40]} 19. Rc2 {[%emt 0:02:22]} Qe6 {[%emt 0:06:04]} 20. Rfc1 {[%emt 0:18:50]} Rac8 {[%emt 0:01:42]} 21. b3 {[%emt 0:01:09]} Rc5 {[%emt 0:03:38]} 22. Nb5 {[%emt 0:02:12]} Rxc2 {[%emt 0:01:30]} 23. Rxc2 {[%emt 0:00:05]} Rxc2 {[%emt 0:01:18]} 24. Qxc2 {[%emt 0:00:01]} a6 {[%emt 0:00:11]} 25. Na7 {[%emt 0:02:54]} (25. Nd4 $11 Qe5 26. Nf5) 25... Qd7 {[%emt 0:02:25]} (25... d5 $15) 26. Qc8+ $14 {[%emt 0:03:25]} Qxc8 {[%emt 0:00:05]} 27. Nxc8 {[%emt 0:00:03][%mdl 4096] Endgame KBN-KBN} Kf8 {[%emt 0:00:46]} 28. b4 {[%emt 0:04:28][%cal Oe4e5] Threatening e5!} b5 {[%emt 0:02:30]} 29. Kf1 {[%emt 0:01:14]} Ne8 {[%emt 0:01:15]} (29... d5 $11) 30. Ke2 {[%emt 0:04:34]} Bf6 {[%emt 0:01:18]} 31. Kd3 {[%emt 0:00:06] Against Bc3} Bb2 {[%emt 0:00:11]} 32. Bh3 {[%emt 0:00:52]} Bf6 {[%emt 0:01:29]} 33. Bd7 {[%emt 0:01:13]} Be7 $2 {[%emt 0:00:28][%mdl 8192]} (33... Nc7 $16) 34. Na7 $2 {[%emt 0:03:59]} (34. Nxe7 $18 Kxe7 35. Bc8) 34... Nc7 {[%emt 0:00:11]} 35. Nc6 {[%emt 0:00:17] White is more active.} f6 {[%emt 0:01:15]} (35... Bf6 $16) 36. Kd4 {[%emt 0:01:06]} (36. Bf5 $18) 36... g5 {[%emt 0:00:34]} (36... g6 $16 {was worth a try.} 37. a3 f5) 37. h5 $18 {[%emt 0:00:38]} Kf7 {[%emt 0:00:26]} 38. Bc8 {[%emt 0:00:13]} Ke8 {[%emt 0:00:29]} 39. Nb8 {[%emt 0:01:00]} Kd8 {[%emt 0:00:05] [#]} 40. Bb7 {[%emt 0:00:10]} d5 $2 {[%emt 0:01:01]} (40... Bf8 41. Nxa6 g4) 41. exd5 $2 {[%emt 0:00:34]} (41. Nc6+ Kd7 42. Nxe7 Ne6+ 43. Kxd5 Kxe7 44. Bc8 Nc7+ 45. Kc6) 41... a5 $2 {[%emt 0:00:33]} (41... Bf8 42. Bxa6 (42. Nxa6 Nxa6 43. Bxa6 Bxb4 $18) 42... f5) 42. bxa5 {[%emt 0:00:19]} (42. Nc6+ $142 Kd7 43. Nxe7) 42... Bb4 {[%emt 0:00:05]} 43. Nc6+ {[%emt 0:00:12] Weighted Error Value: White=0.47/Black=0.55} 1-0

[Event "SUI-ch Bundesturnier TP-1 2022"]
[Site "Payerne"]
[Date "2022.05.28"]
[Round "5.1"]
[White "Bauer, Christian"]
[Black "Laurent-Paoli, Pierre"]
[Result "1-0"]
[ECO "D32"]
[WhiteElo "2596"]
[BlackElo "2486"]
[Annotator "TA"]
[PlyCount "241"]
[EventDate "2022.05.26"]
[EventType "swiss"]
[EventCountry "SUI"]
[SourceTitle "playchess.com"]
[Source "ChessBase"]
[SourceQuality "1"]
[TimeControl "5400+30"]

{[%evp 100,241,86,86,86,86,86,86,86,86,86,86,86,86,86,86,86,86,340,339,339,339,339,339,339,339,339,331,381,373,366,317,317,310,366,288,288,281,273,273,273,266,266,266,266,259,258,247,232,203,203,196,203,196,196,196,189,189,189,158,331,331,331,331,331,331,331,331,1115,1156,1031,1179,1116,1094,1096,331,1058,1029,1042,944,573,272,331,331,1229,1229,272,182,29971,1116,29972,29969,29967,1110,29978,29976,29976,29972,29964,1567,1582,1078,1057,900,29964,29962,8911,7781,7781,7096,1622,735,29966,29968,29968,29964,29973,29974,29973,1057,1057,331,331,464,338,3991,1199,1022,3028,331,331,331,331,331,331,331,331,331,29980,331,29984,29985,29985,29986]} 1. c4 {[%emt 0:00:46]} e6 {[%emt 0:02:31]} 2. Nc3 {[%emt 0:01:14]} d5 {[%emt 0:01:06]} 3. d4 {[%emt 0:00:08]} a6 {[%emt 0:00:09]} 4. cxd5 {[%emt 0:07:36]} exd5 {[%emt 0:00:10]} 5. Bf4 {[%emt 0:00:41]} Nf6 {[%emt 0:08:46]} 6. Nf3 {[%emt 0:07:30]} c5 {[%emt 0:02:53]} 7. e3 {[%emt 0:07:55]} Nc6 {[%emt 0:00:48]} 8. Be2 {[%emt 0:00:13]} Be7 {[%emt 0:07:12]} 9. O-O {[%emt 0:01:15]} O-O {[%emt 0:02:40]} 10. Rc1 {[%emt 0:13:34]} Be6 {[%emt 0:01:38]} 11. dxc5 {[%emt 0:04:15]} Bxc5 {[%emt 0:00:14]} 12. Na4 {[%emt 0:10:12]} Ba7 {[%emt 0:01:45]} 13. Ne5 {[%emt 0:06:35]} Nxe5 {[%emt 0:13:59]} 14. Bxe5 {[%emt 0:00:01]} b5 {[%emt 0:00:10]} 15. Nc5 {[%emt 0:05:17]} Bxc5 {[%emt 0:03:34]} 16. Rxc5 {[%emt 0:00:48]} Nd7 {[%emt 0:00:04]} 17. Bc7 {[%emt 0:00:17]} Qf6 {[%emt 0:02:11]} 18. Rc3 {[%emt 0:09:17]} b4 {[%emt 0:06:33]} 19. Rc2 {[%emt 0:00:15]} Bf5 {[%emt 0:03:43]} 20. Rd2 {[%emt 0:00:47]} Nb6 {[%emt 0:05:15]} 21. b3 {[%emt 0:05:07]} Rfc8 {[%emt 0:00:40]} 22. Bxb6 {[%emt 0:00:56]} Qxb6 {[%emt 0:00:04]} 23. Rxd5 {[%emt 0:00:35]} Be6 {[%emt 0:02:58]} 24. Rd6 {[%emt 0:01:09]} Qa5 {[%emt 0:00:33]} 25. Bf3 {[%emt 0:03:08]} Rab8 {[%emt 0:00:59]} 26. Qe2 {[%emt 0:00:15]} Rb6 {[%emt 0:00:59]} 27. Rd4 {[%emt 0:00:27]} Qe5 {[%emt 0:01:40]} 28. Qd2 {[%emt 0:00:46]} Qb8 {[%emt 0:09:02]} 29. Rd1 {[%emt 0:05:50]} g6 {[%emt 0:00:06]} 30. h4 {[%emt 0:01:06]} h6 {[%emt 0:03:28]} 31. g3 {[%emt 0:02:09]} a5 {[%emt 0:00:17]} 32. Bd5 {[%emt 0:01:32]} Qe5 {[%emt 0:03:07]} 33. Bxe6 {[%emt 0:01:21]} Qxe6 {[%emt 0:00:03]} 34. Rd8+ {[%emt 0:01:57]} Rxd8 {[%emt 0:00:07]} 35. Qxd8+ {[%emt 0:00:01]} Kg7 {[%emt 0:01:49]} 36. Rd4 {[%emt 0:01:03]} Rb5 {[%emt 0:01:47]} 37. Qc7 {[%emt 0:00:58]} Rf5 {[%emt 0:01:06]} 38. Kg2 {[%emt 0:00:52]} Qf6 {[%emt 0:01:00]} 39. Qc2 {[%emt 0:00:16]} h5 {[%emt 0:00:29]} 40. Qd2 {[%emt 0:00:18]} Qc6+ {[%emt 0:00:25]} 41. e4 {[%emt 0:00:09]} Re5 {[%emt 0:02:06]} 42. Rc4 {[%emt 0:00:36]} Qe6 {[%emt 0:01:03]} 43. Qd4 {[%emt 0:00:26]} Kh7 {[%emt 0:00:04]} 44. Kg1 {[%emt 0:01:44]} Qe8 {[%emt 0:04:16]} 45. Kg2 {[%emt 0:00:40]} Re6 {[%emt 0:00:45]} 46. Qd3 {[%emt 0:00:41]} Qe7 {[%emt 0:00:26]} 47. Qc2 {[%emt 0:00:20]} Rd6 {[%emt 0:00:34]} 48. Rc7 {[%emt 0:00:37]} Rd7 {[%emt 0:00:02]} 49. Rxd7 {[%emt 0:00:34]} Qxd7 {[%emt 0:00:03]} 50. Qc5 {[%emt 0:00:23]} Qe6 {[%emt 0:03:22]} 51. Qd5 {[%emt 0:00:29]} Qe7 {[%emt 0:00:06]} 52. e5 {[%emt 0:00:48]} Qa7 {[%emt 0:00:32]} 53. Kf3 {[%emt 0:00:23]} Kg7 {[%emt 0:00:43]} 54. e6 {[%emt 0:00:28]} fxe6 {[%emt 0:00:20]} 55. Qxe6 {[%emt 0:00:01]} Qc5 {[%emt 0:00:45]} 56. Qd7+ {[%emt 0:00:44]} Kh6 {[%emt 0:00:51]} 57. Kg2 {[%emt 0:00:42]} Qe5 {[%emt 0:01:20]} 58. Qf7 {[%emt 0:00:26]} Qe4+ $2 {[%emt 0:01:07][%mdl 8192]} (58... Qc5 $16) 59. Qf3 $18 {[%emt 0:00:08]} Qc2 {[%emt 0:02:37]} 60. Qe3+ {[%emt 0:00:34]} Kh7 {[%emt 0:00:03]} 61. Qa7+ {[%emt 0:00:08]} Kg8 {[%emt 0:02:15]} 62. Qxa5 {[%emt 0:00:14]} Qe4+ {[%emt 0:00:16] [#]} 63. Kh2 $1 {[%emt 0:00:14]} Qd4 {[%emt 0:01:15]} 64. Qa8+ {[%emt 0:00:16]} Kg7 {[%emt 0:00:13]} 65. Kg2 {[%emt 0:00:10]} Qc5 {[%emt 0:00:36]} 66. Qb7+ {[%emt 0:00:42]} Kf6 {[%emt 0:00:28]} 67. Qe4 {[%emt 0:01:01]} Kg7 {[%emt 0:00:19]} 68. Qe3 {[%emt 0:00:51]} Qd5+ {[%emt 0:00:29]} 69. Kh2 {[%emt 0:00:21]} Qd6 {[%emt 0:00:37]} 70. Qa7+ {[%emt 0:01:17]} Kf6 {[%emt 0:00:32]} 71. Qa8 {[%emt 0:00:30]} Kg7 {[%emt 0:00:16]} 72. Qe4 {[%emt 0:00:18]} Qc5 {[%emt 0:00:25]} 73. Kg2 {[%emt 0:00:19]} Qd6 {[%emt 0:00:22]} 74. g4 {[%emt 0:00:45]} hxg4 {[%emt 0:00:16]} 75. Qxg4 {[%emt 0:00:01]} Qd5+ {[%emt 0:00:33]} 76. Kg3 {[%emt 0:00:16]} Qe5+ {[%emt 0:01:05]} 77. Qf4 {[%emt 0:00:16]} Qc3+ {[%emt 0:00:13]} 78. Qe3 {[%emt 0:00:16]} Qc7+ {[%emt 0:00:12]} 79. f4 {[%emt 0:00:49]} Kh6 $2 {[%emt 0:01:12]} (79... Kf7 $16 80. Qe4 Qa5) 80. Qe5 $18 {[%emt 0:01:24]} Qc3+ {[%emt 0:00:12]} 81. Kg4 {[%emt 0:00:41]} Qc8+ {[%emt 0:00:25]} 82. f5 {[%emt 0:00:39]} gxf5+ {[%emt 0:00:07]} 83. Qxf5 {[%emt 0:00:17]} Qc3 $2 {[%emt 0:00:37]} (83... Qb7 84. Qh5+ Kg7 85. Qe5+ Kf7 86. Qf4+ Kg7) 84. h5 $18 {[%emt 0:00:26]} Kg7 {[%emt 0:00:03]} 85. Qg6+ {[%emt 0:00:30]} Kh8 {[%emt 0:00:04]} 86. Qe8+ {[%emt 0:00:20]} Kh7 {[%emt 0:00:41]} 87. Qe4+ $2 {[%emt 0:00:09]} (87. Qe7+ Kh8 88. Qe8+ Kg7 89. Qd7+ Kh6 90. Qf7 Qc8+ 91. Kf4 Qc1+ 92. Ke4 Qc6+ 93. Kd4 Qb6+ 94. Kc4 Qc6+ 95. Kxb4 Qd6+ 96. Kb5 Qe5+ 97. Kb6 Qe3+ 98. Ka5 Qc5+ 99. Ka4 Qc6+ 100. Kb4 Qb6+ 101. Kc4 Qc6+ 102. Kb4) 87... Kg7 $2 {[%emt 0:00:22]} (87... Kh8 88. Qe8+ Kh7 89. Qd7+ Kh6) 88. Qe7+ $18 {[%emt 0:01:12]} Kh6 {[%emt 0:00:40]} 89. Qe6+ {[%emt 0:00:25]} Kg7 {[%emt 0:00:39]} 90. Qc4 {[%emt 0:00:05]} (90. Qd7+ $142 Kh6 91. Qf7 Qc8+ 92. Qf5) 90... Kh6 {[%emt 0:00:46]} 91. Kf5 {[%emt 0:00:14]} Qh3+ $2 {[%emt 0:01:04]} (91... Kh7 92. Qf7+ Kh8 93. Qf8+ Kh7 94. Qf7+ Kh8 95. Qe8+ Kh7 96. Qe7+ Kg8) 92. Qg4 $18 {[%emt 0:00:28]} Qd3+ {[%emt 0:00:29]} 93. Ke5 {[%emt 0:00:34]} Qc3+ $2 {[%emt 0:00:02]} (93... Qe3+ $18 94. Kd5 Qd3+ 95. Kc5 Qe3+ 96. Kxb4 Qe1+ 97. Kc4 Qf1+ 98. Kd4 Qf6+ 99. Kd5 Qd8+ 100. Ke4 Qe7+ 101. Kd3 Qd6+ 102. Kc2 Qh2+ 103. Kc3 Qe5+ 104. Qd4 Qc7+ 105. Kb2 Qh2+ 106. Kc1 Qc7+ 107. Qc4 Qd6) 94. Kd5 {[%emt 0:00:15]} (94. Kd6 $142 Kh7 95. Qg6+ Kh8 96. Qh6+ Kg8 97. Qg5+ Kf8 98. Qe7+ Kg8 99. Qg5+ Kf8 100. h6 Qd4+ 101. Kc6 Qc3+ 102. Kb6) 94... Kh7 {[%emt 0:00:21]} 95. Qe4+ {[%emt 0:00:39]} Kg7 {[%emt 0:01:03]} 96. Qc4 {[%emt 0:01:01]} (96. Qg6+ $142 Kf8 97. h6 Qd2+ 98. Kc6 (98. Ke6 Qe3+ 99. Kd5 Qe6+ 100. Kxe6 $11) 98... Qd7+ 99. Kc5 Qc8+ 100. Qc6 Qf5+ 101. Kb6) 96... Qe1 {[%emt 0:01:19]} 97. Qg4+ {[%emt 0:00:38]} Kh8 {[%emt 0:00:36]} 98. Qd4+ {[%emt 0:00:36]} Kg8 {[%emt 0:00:11]} 99. Kc5 {[%emt 0:00:34]} (99. h6 $142 Qh1+ 100. Qe4 Qf1 101. Qg6+ Kf8 102. h7 Qb5+ 103. Kd4 Qd7+ 104. Ke4 Qb7+ 105. Ke3 Qe7+ 106. Kd3 Qd7+ 107. Ke4 Qb7+ 108. Ke3) 99... Qe7+ {[%emt 0:00:43]} 100. Kb5 {[%emt 0:00:37]} Qb7+ {[%emt 0:00:15]} 101. Qb6 {[%emt 0:00:32]} Qa8 {[%emt 0:00:01]} 102. Qg6+ {[%emt 0:00:30]} Kh8 {[%emt 0:00:08]} 103. Qh6+ {[%emt 0:00:15]} Kg8 {[%emt 0:00:05]} 104. Qe6+ {[%emt 0:00:27]} Kh8 {[%emt 0:00:35]} 105. Kxb4 {[%emt 0:00:44]} (105. Qf6+ $142 Kh7 106. h6 Qb8+ 107. Kc4 Qc8+ 108. Kxb4 Qb8+ 109. Kc4 Qg8+ 110. Kc5 Qc8+ 111. Qc6 Qf8+ 112. Kb6 Qf2+ 113. Kb7) 105... Qxa2 {[%emt 0:00:24]} 106. Qh6+ {[%emt 0:00:11]} Kg8 {[%emt 0:00:06]} 107. Qg5+ {[%emt 0:00:03]} Kf7 {[%emt 0:01:04]} 108. h6 {[%emt 0:00:15]} Qf2 {[%emt 0:01:05]} 109. Qd5+ {[%emt 0:00:50]} (109. h7 $142 Qd4+ 110. Kb5 Qd7+ 111. Kc4 Qc6+ 112. Kd4 Qb6+ 113. Kc3 Qc6+ 114. Kd4 Qb6+ 115. Qc5 Qf6+ 116. Qe5 Qh4+ 117. Kc5) 109... Kg6 $18 {[%emt 0:00:40]} 110. Qc6+ $2 {[%emt 0:00:35]} (110. Qe6+ Kh7 111. Kb5) 110... Kh7 $18 {[%emt 0:00:08]} 111. Qe6 {[%emt 0:00:55]} Qd4+ {[%emt 0:00:44]} 112. Kb5 Qd3+ {[%emt 0:00:18]} 113. Ka4 {[%emt 0:00:12]} Qc2 {[%emt 0:00:59]} 114. Qc4 $2 {[%emt 0:00:01]} (114. Ka5 {Black must now prevent Kb6.} Qa2+ 115. Kb6) 114... Qa2+ {[%emt 0:00:25]} 115. Kb5 Kxh6 {[%emt 0:00:19]} 116. b4 {[%emt 0:00:05]} Qf2 {[%emt 0:01:31]} 117. Qc6+ {[%emt 0:00:16]} Kg7 {[%emt 0:00:08]} 118. Ka6 {[%emt 0:00:27]} Kf7 $2 {[%emt 0:00:50]} (118... Qe2+ $18 119. Ka7 Qf2+ 120. Kb7 Qa2) 119. b5 $2 {[%emt 0:00:19]} (119. Qb7+ {mates} Ke8 120. Qb8+ Ke7 121. Qa7+ Qxa7+ 122. Kxa7 Kf7 123. b5 Kg8 124. b6) 119... Ke7 $2 {[%emt 0:00:22]} (119... Qa2+ $18 120. Kb7 Qb2) 120. Qc7+ {[%emt 0:00:14]} Ke8 {[%emt 0:00:14]} 121. Qb8+ {[%emt 0:00:10]} 1-0